bitfinex/quotes_SOLUSD_20250129
["timestamp","ask_amount","ask_price","bid_price","bid_amount"]
[1738124768152,8.028e-05,231.14,231.13,35.805184]
[1738124768573,3.178e-05,231.15,231.14,23.776884]
[1738124768877,3.178e-05,231.15,231.14,30.65993774]
[1738124769776,3.178e-05,231.15,231.14,33.88424782]
[1738124769981,3.178e-05,231.15,231.14,38.21054782]
[1738124770495,3.178e-05,231.15,231.14,14.43366382]
[1738124774869,3.178e-05,231.15,231.14,17.33366382]
[1738124775387,3.178e-05,231.15,231.11,0.063]
[1738124777486,0.08539268,231.12,231.11,0.063]
[1738124780081,0.08539268,231.12,231.11,4.3899]
[1738124781471,0.08539268,231.12,231.11,0.063]
[1738124783081,11.00276069,231.12,231.11,0.063]
[1738124784482,10.87727069,231.12,231.11,0.063]
[1738124784789,0.08539268,231.12,231.11,0.063]
[1738124794977,0.08539268,231.12,231.11,4.3899]
[1738124797491,0.08313929,231.12,231.11,4.3899]
[1738124798400,0.08313929,231.12,231.11,0.063]
[1738124807307,0.08313929,231.12,231.11,15.18222764]
[1738124809611,0.08313929,231.12,231.11,16.18222764]
[1738124810219,0.08313929,231.12,231.11,15.18222764]
[1738124810591,0.08313929,231.12,231.11,4.3899]
[1738124811507,0.08313929,231.12,231.11,0.063]
[1738124817415,0.08643383,231.12,231.11,0.063]
[1738124823025,0.08643383,231.12,231.11,4.3899]
[1738124823411,0.08643383,231.12,231.11,11.29593261]
[1738124826723,0.08643383,231.12,231.11,94.39593261]
[1738124829910,6e-08,231.14,231.13,54.776884]
[1738124830105,0.08381466,231.19,231.16,20.0]
[1738124830424,0.08381466,231.19,231.18,6.90603261]
[1738124832029,0.08381466,231.19,231.18,11.23163261]
[1738124836631,0.08381466,231.19,231.18,94.33163261]
[1738124837525,0.0867565,231.23,231.22,4.3248]
[1738124837712,0.0867565,231.23,231.22,11.23083261]
[1738124841835,0.0867565,231.23,231.19,2.9]
[1738124843020,0.0867565,231.23,231.2,4.3252]
[1738124843533,0.0867565,231.23,231.2,11.23123261]
[1738124843739,0.0867565,231.23,231.22,6.90603261]
[1738124844836,0.0867565,231.23,231.22,11.23083261]
[1738124845139,0.0867565,231.23,231.22,4.3248]
[1738124846041,0.0867565,231.23,231.21,4.325]
[1738124848834,0.0867565,231.23,231.19,2.9]
[1738124849021,0.0867565,231.23,231.21,20.0]
[1738124849222,0.07288844,231.26,231.22,50.68291661]
[1738124849453,1.5907,231.35,231.26,6.90603261]
[1738124850439,1.5907,231.35,231.27,4.3239]
[1738124850839,6.90603261,231.38,231.27,4.3239]
[1738124851040,0.03,231.39,231.27,28.100784]
[1738124851251,1.749e-05,231.29,231.28,23.776884]
[1738124851425,1.749e-05,231.29,231.28,31.68291661]
[1738124852463,1.749e-05,231.29,231.28,30.68291661]
[1738124852669,1.749e-05,231.29,231.28,31.68291661]
[1738124853865,1.749e-05,231.29,231.28,31.80840661]
[1738124854362,1.749e-05,231.29,231.28,251.30840661]
[1738124854964,1.749e-05,231.32,231.31,83.596574]
[1738124855176,0.03,231.39,231.34,1.0]
[1738124855394,0.03,231.39,231.38,6.90603261]
[1738124856656,0.03,231.39,231.38,10.76158848]
[1738124857592,0.11236656,231.39,231.38,10.76158848]
[1738124859093,0.11236656,231.39,231.38,38.86027248]
[1738124859270,0.11236656,231.39,231.38,15.08338848]
[1738124862484,6.656e-05,231.39,231.38,68.86027248]
[1738124863201,6.656e-05,231.39,231.38,15.08338848]
[1738124863500,6.656e-05,231.39,231.38,98.18338848]
[1738124864904,0.03006656,231.39,231.38,121.96027248]
[1738124865610,0.03006656,231.39,231.38,98.18338848]
[1738124867273,0.03006656,231.39,231.38,121.96027248]
[1738124877410,0.10795092,231.39,231.38,121.96027248]
[1738124878391,0.10795092,231.39,231.38,98.18338848]
[1738124878591,0.10795092,231.39,231.38,94.30832599]
[1738124878788,3.053e-05,231.41,231.4,24.3215]
[1738124878979,3.053e-05,231.41,231.4,31.20802599]
[1738124879485,3.053e-05,231.41,231.4,54.98490999]
[1738124879687,0.1141349,231.42,231.4,54.98490999]
[1738124879688,6.543e-05,231.42,231.41,23.776884]
[1738124879894,6.543e-05,231.42,231.41,30.66340999]
[1738124880607,6.543e-05,231.42,231.41,6.88652599]
[1738124881103,6.543e-05,231.42,231.41,30.66340999]
[1738124882114,0.09093836,231.44,231.41,251.28889999]
[1738124882293,7.758e-05,231.44,231.43,80.66340999]
[1738124882499,1.913e-05,231.45,231.44,23.776884]
[1738124883010,1.913e-05,231.45,231.44,30.66340999]
[1738124884023,1.913e-05,231.45,231.44,11.20722599]
[1738124887111,1.913e-05,231.45,231.44,94.30722599]
[1738124888606,1.913e-05,231.45,231.44,97.20722599]
[1738124889054,0.03001913,231.45,231.44,97.20722599]
[1738124897427,0.11795143,231.45,231.44,97.20722599]
[1738124898733,0.11795143,231.45,231.44,9.78652599]
[1738124900330,0.11795143,231.45,231.44,6.88652599]
[1738124900736,0.11795143,231.45,231.44,6.94952599]
[1738124903941,0.11795143,231.45,231.44,11.27022599]
[1738124917449,0.11102423,231.45,231.44,11.27022599]
[1738124920851,0.08642307,231.46,231.44,35.04710999]
[1738124921056,0.08642307,231.46,231.44,118.14710999]
[1738124921842,0.08642307,231.46,231.45,23.776884]
[1738124923657,0.08642307,231.46,231.44,94.37022599]
[1738124925254,0.08642307,231.46,231.45,6.88652599]
[1738124925660,0.11642307,231.46,231.45,6.88652599]
[1738124926961,0.11642307,231.46,231.45,11.20702599]
[1738124932659,0.11642307,231.46,231.45,34.98390999]
[1738124933036,6.028e-05,231.48,231.47,23.776884]
[1738124933335,6.028e-05,231.48,231.47,58.20951395]
[1738124935755,6.028e-05,231.48,231.47,62.52971395]
[1738124937359,0.03,231.49,231.47,62.52971395]
[1738124937538,0.11534156,231.49,231.48,58.20951395]
[1738124938046,0.11534156,231.49,231.48,30.66340999]
[1738124939060,0.11534156,231.49,231.48,34.98340999]
[1738124943549,0.11534156,231.49,231.48,118.08340999]
[1738124946079,0.11534156,231.49,231.48,94.30652599]
[1738124949456,0.11534156,231.49,231.48,11.20652599]
[1738124951483,0.11534156,231.49,231.48,62.59251395]
[1738124951974,4.156e-05,231.49,231.48,145.69251395]
[1738124957383,0.10838862,231.51,231.48,145.69251395]
[1738124957384,0.03,231.51,231.49,23.776884]
[1738124957565,0.11930801,231.51,231.5,26.88652599]
[1738124958587,0.11930801,231.51,231.5,31.20612599]
[1738124961887,0.11930801,231.51,231.5,54.98300999]
[1738124962089,2.062e-05,231.52,231.51,23.776884]
[1738124962477,2.062e-05,231.52,231.51,30.66340999]
[1738124962979,5.19e-05,231.54,231.53,43.776884]
[1738124963171,0.03,231.63,231.53,43.776884]
[1738124963172,0.03,231.63,231.6,30.0]
[1738124963377,0.03,231.7,231.65,20.0]
[1738124963579,0.03,231.7,231.69,6.88652599]
[1738124963777,0.0001,231.7,231.69,30.66340999]
[1738124963968,3.08028512,231.74,231.73,24.3153]
[1738124964288,0.03,231.75,231.74,23.776884]
[1738124964790,67.76265838,231.8,231.75,23.776884]
[1738124964959,67.76265838,231.8,231.75,30.66340999]
[1738124965165,6.77588528,231.87,231.75,6.88652599]
[1738124965361,6.77588528,231.87,231.84,6.88652599]
[1738124966293,6.77588528,231.87,231.82,6.88652599]
[1738124967508,1.5981,231.88,231.82,6.88652599]
[1738124969991,0.12549,231.87,231.8,6.88652599]
[1738124970193,0.12549,231.87,231.73,136.4]
[1738124970194,7.01201599,231.85,231.77,9.76652599]
[1738124970989,7.01201599,231.85,231.77,6.88652599]
[1738124973391,0.12549,231.81,231.75,9.76652599]
[1738124973604,0.12549,231.81,231.74,20.0]
[1738124973773,0.12549,231.81,231.73,6.88652599]
[1738124973774,6.88652599,231.8,231.73,6.88652599]
[1738124973976,0.12549,231.79,231.73,6.88652599]
[1738124974279,0.12549,231.79,231.71,6.88652599]
[1738124974682,1.5269,231.78,231.71,6.88652599]
[1738124974890,1.5269,231.78,231.72,6.88652599]
[1738124975077,0.12549,231.77,231.7,6.88652599]
[1738124975998,0.12549,231.75,231.69,6.88652599]
[1738124976805,0.12549,231.76,231.69,6.88652599]
[1738124977102,0.12549,231.76,231.7,6.88652599]
[1738124977500,0.08458964,231.71,231.7,6.88652599]
[1738124986989,0.08458964,231.71,231.7,6.94952599]
[1738124995724,0.21007964,231.71,231.7,0.063]
[1738124996013,1.80077964,231.71,231.7,0.063]
[1738124997517,0.08715437,231.71,231.7,0.063]
[1738124997721,0.08715437,231.71,231.7,6.94952599]
[1738124998199,0.08715437,231.71,231.7,0.063]
[1738124998713,1.98715437,231.71,231.7,0.063]
[1738124998899,1.98715437,231.71,231.7,6.94952599]
[1738125001320,1.98715437,231.71,231.7,0.063]
[1738125003916,1.98715437,231.71,231.7,6.94952599]
[1738125004998,1.98715437,231.71,231.7,0.063]
[1738125006296,1.98715437,231.71,231.7,6.94952599]
[1738125009526,1.98715437,231.71,231.7,30.72640999]
[1738125009715,0.08715437,231.71,231.7,28.82640999]
[1738125010027,0.08715437,231.71,231.7,30.66340999]
[1738125010628,0.08715437,231.71,231.7,30.72640999]
[1738125011326,0.08715437,231.71,231.7,6.94952599]
[1738125011644,3.355e-05,231.77,231.75,50.0]
[1738125011808,0.03,231.85,231.79,20.0]
[1738125012008,0.03,231.85,231.83,6.88652599]
[1738125012636,0.03,231.85,231.81,6.88652599]
[1738125012843,0.03,231.85,231.81,11.20032599]
[1738125014530,0.03,231.85,231.82,10.7232038]
[1738125016239,0.03,231.85,231.8,10.7232038]
[1738125017636,0.08465973,231.81,231.76,13.6232038]
[1738125021747,10.7232038,231.79,231.74,2.88]
[1738125022538,10.7232038,231.79,231.72,10.7232038]
[1738125023041,10.7232038,231.79,231.71,54.16]
[1738125024538,0.12549,231.78,231.71,54.16]
[1738125025232,0.12549,231.78,231.71,58.4757]
[1738125026240,0.12549,231.78,231.71,7.1957]
[1738125026739,0.12549,231.78,231.71,4.3157]
[1738125028142,0.12549,231.78,231.7,10.7862038]
[1738125028442,0.12549,231.78,231.7,15.1021038]
[1738125031849,0.12549,231.78,231.7,10.7862038]
[1738125032030,10.7232038,231.74,231.7,0.063]
[1738125032624,0.12549,231.71,231.7,0.063]
[1738125032943,11.8477938,231.71,231.7,0.063]
[1738125033534,35.6246778,231.71,231.7,0.063]
[1738125035123,1.65259,231.67,231.59,51.28]
[1738125035319,0.12549,231.64,231.59,51.28]
[1738125035549,0.12549,231.64,231.59,62.0032038]
[1738125035735,10.8486938,231.65,231.59,51.28]
[1738125035930,0.12549,231.63,231.59,51.28]
[1738125036140,10.7232038,231.62,231.59,51.28]
[1738125036530,10.7232038,231.64,231.59,51.28]
[1738125036737,0.12549,231.63,231.59,51.28]
[1738125037650,10.81148394,231.6,231.59,51.28]
[1738125037946,10.93697394,231.6,231.59,51.28]
[1738125038840,34.71385794,231.6,231.59,51.28]
[1738125039431,23.902374,231.59,231.52,0.063]
[1738125039645,0.12549,231.54,231.52,0.063]
[1738125040557,10.8486938,231.53,231.52,0.063]
[1738125042343,34.6255778,231.53,231.52,0.063]
[1738125043430,37.06615504,231.53,231.52,0.063]
[1738125044655,21.73199,231.49,231.48,0.063]
[1738125044842,32.89667104,231.49,231.48,0.063]
[1738125045458,33.89577104,231.49,231.48,0.063]
[1738125046129,57.67265504,231.49,231.48,0.063]
[1738125046356,2.12459,231.47,231.46,0.063]
[1738125046681,13.28927104,231.47,231.46,0.063]
[1738125047358,0.12549,231.46,231.44,0.063]
[1738125047556,23.902374,231.46,231.44,0.063]
[1738125048141,0.12549,231.46,231.44,0.063]
[1738125050456,23.902374,231.46,231.44,0.063]
[1738125051266,0.12549,231.46,231.44,0.063]
[1738125052457,23.902374,231.46,231.44,0.063]
[1738125052760,36.6246778,231.46,231.44,0.063]
[1738125053161,34.6255778,231.46,231.44,0.063]
[1738125055158,35.6246778,231.46,231.44,0.063]
[1738125055456,36.6246778,231.46,231.44,0.063]
[1738125057068,35.6255778,231.46,231.44,0.063]
[1738125057534,34.70743541,231.46,231.44,0.063]
[1738125058456,10.93055141,231.46,231.44,0.063]
[1738125059566,34.70743541,231.46,231.44,0.063]
[1738125060054,36.70653541,231.46,231.44,0.063]
[1738125060374,36.70653541,231.46,231.41,0.063]
[1738125060375,44.901474,231.42,231.41,0.063]
[1738125060562,56.06615504,231.42,231.41,0.063]
[1738125060874,21.12549,231.38,231.28,0.063]
[1738125061052,10.7232038,231.31,231.28,0.063]
[1738125062685,10.7232038,231.34,231.28,0.063]
[1738125063347,10.7232038,231.33,231.28,0.063]
[1738125063968,10.7232038,231.33,231.28,4.3866]
[1738125064860,10.7232038,231.35,231.28,15.1098038]
[1738125065475,10.7232038,231.37,231.3,10.7232038]
[1738125066774,10.7232038,231.37,231.31,4.3232]
[1738125066969,10.7232038,231.41,231.34,10.7232038]
[1738125067177,10.7232038,231.44,231.37,10.7232038]
[1738125067376,10.7232038,231.43,231.36,10.7232038]
[1738125068061,10.7232038,231.43,231.37,4.322]
[1738125070377,10.7532038,231.43,231.37,4.322]
[1738125071977,0.03,231.43,231.4,10.7232038]
[1738125073161,0.03,231.43,231.38,10.7232038]
[1738125074484,0.03,231.43,231.38,15.0450038]
[1738125077680,0.08174114,231.39,231.38,15.0450038]
[1738125078574,4.114e-05,231.39,231.38,15.0450038]
[1738125078962,0.07830918,231.41,231.4,20.0]
[1738125079168,0.07830918,231.41,231.4,30.7232038]
[1738125080484,0.07830918,231.41,231.4,35.0447038]
[1738125082391,0.07830918,231.41,231.39,1.506]
[1738125083064,0.07830918,231.41,231.39,5.8276]
[1738125084205,0.07830918,231.41,231.39,16.5508038]
[1738125088484,1.443e-05,231.42,231.41,28.098184]
[1738125088679,1.443e-05,231.42,231.41,38.8213878]
[1738125090198,1.443e-05,231.42,231.41,42.03319699]
[1738125092089,1.443e-05,231.42,231.41,125.13319699]
[1738125096175,1.443e-05,231.42,231.41,101.35631299]
[1738125096383,1.443e-05,231.42,231.41,104.23631299]
[1738125096588,1.443e-05,231.42,231.41,93.51310919]
[1738125097094,1.443e-05,231.42,231.41,117.28999319]
[1738125097302,1.443e-05,231.42,231.41,114.078184]
[1738125097607,0.07892738,231.42,231.41,114.078184]
[1738125099508,9.486e-05,231.43,231.42,31.12549]
[1738125099707,0.08676643,231.46,231.45,20.0]
[1738125100003,0.08676643,231.46,231.44,83.1]
[1738125100211,0.08676643,231.46,231.45,6.88766974]
[1738125100602,0.08676643,231.46,231.45,10.75296439]
[1738125101199,0.08676643,231.46,231.45,15.07346439]
[1738125104713,0.08676643,231.46,231.45,38.85034839]
[1738125106730,6.643e-05,231.46,231.45,38.85034839]
[1738125108117,6.643e-05,231.46,231.45,42.05742866]
[1738125109921,6.643e-05,231.46,231.45,120.83692866]
[1738125110295,6.643e-05,231.46,231.45,97.06004466]
[1738125111006,6.643e-05,231.46,231.45,99.94004466]
[1738125111513,6.643e-05,231.46,231.45,123.71692866]
[1738125111700,6.643e-05,231.46,231.45,130.36282866]
[1738125112309,6.259e-05,231.47,231.46,0.12549]
[1738125113115,6.259e-05,231.47,231.46,3.33257027]
[1738125113825,1.512e-05,231.5,231.49,23.776884]
[1738125113993,1.512e-05,231.5,231.49,34.52984839]
[1738125114404,5.553e-05,231.51,231.5,0.12549]
[1738125114615,5.553e-05,231.51,231.5,108.002374]
[1738125114793,5.553e-05,231.51,231.5,244.402374]
[1738125115396,5.553e-05,231.51,231.5,247.60945427]
[1738125117121,6.0271,231.66,231.53,50.0]
[1738125117302,6.0271,231.66,231.6,10.75296439]
[1738125117505,1.6706,231.67,231.6,10.75296439]
[1738125119923,0.03,231.67,231.64,10.75296439]
[1738125120403,0.03,231.67,231.62,10.75296439]
[1738125121617,0.03,231.67,231.66,10.75296439]
[1738125123801,0.03,231.67,231.64,10.75296439]
[1738125124002,0.03,231.67,231.62,10.75296439]
[1738125125029,0.03,231.67,231.63,4.3172]
[1738125125626,0.03,231.67,231.64,10.75296439]
[1738125125824,0.03,231.67,231.63,4.3172]
[1738125125825,0.03,231.67,231.63,20.0]
[1738125128310,0.03,231.67,231.64,4.317]
[1738125133136,0.03,231.67,231.63,2.88]
[1738125133343,6.87512559,231.64,231.57,4.3183]
[1738125133518,6.87512559,231.62,231.57,4.3183]
[1738125134033,6.87512559,231.64,231.57,4.3183]
[1738125134419,6.87512559,231.66,231.58,6.87512559]
[1738125134626,0.03,231.67,231.6,6.87512559]
[1738125135913,0.03,231.67,231.61,4.3176]
[1738125136541,0.03,231.67,231.61,15.06066488]
[1738125137544,10.77306488,231.67,231.59,10.74306488]
[1738125137752,0.08740938,231.62,231.59,10.74306488]
[1738125139141,0.08740938,231.62,231.61,10.74306488]
[1738125140941,0.08740938,231.62,231.61,15.06066488]
[1738125142843,0.08740938,231.62,231.59,15.06096488]
[1738125143018,0.08740938,231.62,231.59,4.3179]
[1738125143539,9.38e-06,231.62,231.6,34.64543888]
[1738125143839,9.38e-06,231.62,231.6,10.74306488]
[1738125145337,9.38e-06,231.62,231.61,4.3176]
[1738125146850,4.58e-06,231.63,231.62,34.51994888]
[1738125147144,5.73e-05,231.64,231.62,34.51994888]
[1738125147347,3.7e-07,231.65,231.63,28.094084]
[1738125147652,3.7e-07,231.65,231.64,10.74306488]
[1738125148929,3.7e-07,231.65,231.64,15.06006488]
[1738125151451,3.7e-07,231.65,231.62,15.06046488]
[1738125151656,3.7e-07,231.65,231.62,2.9]
[1738125152952,10.74306488,231.64,231.62,2.9]
[1738125153134,10.74306488,231.64,231.58,4.318]
[1738125154260,10.74306488,231.64,231.52,10.7979]
[1738125154261,10.74306488,231.62,231.54,10.74306488]
[1738125154440,10.74306488,231.62,231.54,13.64306488]
[1738125154751,10.74306488,231.62,231.54,10.74306488]
[1738125155145,10.74306488,231.62,231.53,4.319]
[1738125155338,10.74306488,231.6,231.53,4.319]
[1738125155740,10.74306488,231.58,231.51,4.3823]
[1738125157551,10.86855488,231.6,231.53,4.319]
[1738125157856,0.07911853,231.54,231.53,4.319]
[1738125158243,0.07911853,231.54,231.51,4.3823]
[1738125158555,0.07911853,231.54,231.51,0.063]
[1738125158758,10.82218341,231.54,231.51,0.063]
[1738125162337,0.07911853,231.54,231.51,0.063]
[1738125165340,0.20460853,231.54,231.51,0.063]
[1738125165533,10.94767341,231.54,231.51,0.063]
[1738125165751,10.86855488,231.52,231.51,0.063]
[1738125165935,34.64543888,231.52,231.51,0.063]
[1738125166654,40.93823888,231.52,231.51,0.063]
[1738125168759,42.60323888,231.52,231.51,0.063]
[1738125169734,34.51994888,231.46,231.45,0.063]
[1738125171647,10.74306488,231.48,231.45,0.063]
[1738125171854,10.74306488,231.5,231.45,0.063]
[1738125172160,18.70086488,231.52,231.45,0.063]
[1738125172472,1.665,231.52,231.46,10.74306488]
[1738125172841,20.12549,231.51,231.46,10.74306488]
[1738125173045,0.12549,231.51,231.46,10.74306488]
[1738125177666,0.09122712,231.47,231.46,10.74306488]
[1738125178964,0.09122712,231.47,231.46,15.06346488]
[1738125183268,0.09122712,231.47,231.46,98.16346488]
[1738125183453,2.712e-05,231.47,231.46,98.16346488]
[1738125183772,4.754e-05,231.48,231.46,132.68341376]
[1738125183954,6.52e-05,231.49,231.47,21.48612976]
[1738125184667,9.096e-05,231.5,231.49,43.776884]
[1738125184869,9.096e-05,231.5,231.49,54.51994888]
[1738125186460,9.096e-05,231.5,231.49,58.83974888]
[1738125186657,9.096e-05,231.5,231.49,35.06286488]
[1738125188768,9.096e-05,231.5,231.49,15.06286488]
[1738125189304,9.096e-05,231.5,231.47,10.74306488]
[1738125190878,9.096e-05,231.5,231.49,10.74306488]
[1738125191973,9.096e-05,231.5,231.49,15.06286488]
[1738125195881,9.096e-05,231.5,231.49,4.3198]
[1738125196269,9.096e-05,231.5,231.48,10.74306488]
[1738125197460,0.03,231.51,231.48,10.74306488]
[1738125197666,0.12088233,231.51,231.5,10.74306488]
[1738125200170,0.12088233,231.51,231.5,15.06266488]
[1738125200690,0.12088233,231.51,231.48,10.74306488]
[1738125202263,0.12088233,231.51,231.48,15.06296488]
[1738125203587,0.12088233,231.51,231.48,15.12596488]
[1738125204285,0.12088233,231.51,231.48,10.80606488]
[1738125204592,0.24637233,231.51,231.48,0.063]
[1738125204895,0.12549,231.49,231.48,0.063]
[1738125209591,0.9991,231.5,231.48,0.063]
[1738125209992,44.34385124,231.49,231.48,0.063]
[1738125211281,1.12549,231.47,231.46,0.063]
[1738125211498,18.77183212,231.47,231.46,0.063]
[1738125211700,42.54871612,231.47,231.46,0.063]
[1738125213598,11.31003212,231.47,231.46,0.063]
[1738125213898,0.12088233,231.51,231.46,0.063]
[1738125214783,24.02325633,231.51,231.46,0.063]
[1738125215089,0.24637233,231.51,231.46,0.063]
[1738125215398,0.03,231.48,231.46,0.063]
[1738125217000,82.53,231.48,231.46,10.80606488]
[1738125217715,0.07945195,231.47,231.46,0.063]
[1738125218082,0.20494195,231.47,231.46,0.063]
[1738125218689,10.94800683,231.47,231.46,0.063]
[1738125218905,42.98219083,231.47,231.46,0.063]
[1738125219085,43.42366807,231.47,231.46,0.063]
[1738125220205,42.42366807,231.47,231.46,0.063]
[1738125220508,36.16546807,231.47,231.46,0.063]
[1738125220712,37.16546807,231.47,231.46,0.063]
[1738125221983,35.16636807,231.47,231.46,0.063]
[1738125222186,0.20494195,231.47,231.46,0.063]
[1738125223607,0.07945195,231.47,231.46,0.063]
[1738125232387,0.07945195,231.47,231.46,4.3834]
[1738125233924,0.07945195,231.47,231.46,7.60298722]
[1738125235199,5.195e-05,231.47,231.46,7.60298722]
[1738125237509,0.03,231.48,231.46,7.60298722]
[1738125237820,0.11747707,231.48,231.47,15.06326488]
[1738125238214,0.11747707,231.48,231.47,17.96326488]
[1738125238907,0.11747707,231.48,231.47,21.1828521]
[1738125240238,0.11747707,231.48,231.47,104.2828521]
[1738125240407,0.11747707,231.48,231.47,115.02591698]
[1738125241533,0.11747707,231.48,231.47,104.2828521]
[1738125242616,0.11747707,231.48,231.47,115.02591698]
[1738125244350,0.11747707,231.48,231.47,104.2828521]
[1738125247043,0.11747707,231.48,231.47,138.80280098]
[1738125247243,4.483e-05,231.49,231.48,23.776884]
[1738125247421,4.483e-05,231.49,231.48,28.096884]
[1738125247931,0.09026916,231.52,231.51,20.0]
[1738125248138,0.09026916,231.52,231.51,113.84306488]
[1738125248525,6.916e-05,231.52,231.51,113.84306488]
[1738125248927,6.916e-05,231.52,231.51,140.8395361]
[1738125249140,9.444e-05,231.53,231.52,23.776884]
[1738125249322,9.444e-05,231.53,231.52,29.953784]
[1738125249839,9.444e-05,231.53,231.52,6.1769]
[1738125250336,9.444e-05,231.53,231.52,4.3192]
[1738125250537,9.444e-05,231.53,231.51,10.74306488]
[1738125250746,0.03009444,231.53,231.51,10.74306488]
[1738125251938,0.03009444,231.53,231.49,10.74306488]
[1738125252134,0.03009444,231.53,231.47,2.963]
[1738125252135,0.03009444,231.53,231.47,13.70606488]
[1738125252444,0.03009444,231.53,231.47,10.80606488]
[1738125252949,0.12549,231.52,231.47,0.063]
[1738125255047,0.03009444,231.53,231.47,10.80606488]
[1738125255225,0.03009444,231.53,231.47,15.12616488]
[1738125256753,0.03009444,231.53,231.5,10.74306488]
[1738125257059,0.03009444,231.53,231.52,10.74306488]
[1738125257558,0.03,231.53,231.52,10.74306488]
[1738125257856,0.11172709,231.53,231.52,10.74306488]
[1738125258149,0.11172709,231.53,231.52,15.06226488]
[1738125258455,0.11172709,231.53,231.5,10.74306488]
[1738125259560,0.11172709,231.53,231.48,10.74306488]
[1738125259959,0.11172709,231.53,231.5,10.74306488]
[1738125261869,0.11172709,231.53,231.51,4.3194]
[1738125262067,0.11172709,231.53,231.52,10.74306488]
[1738125263452,0.11172709,231.53,231.52,15.06226488]
[1738125264562,0.11172709,231.53,231.52,17.96226488]
[1738125266945,0.11172709,231.53,231.52,10.74306488]
[1738125267351,0.11172709,231.53,231.52,15.06226488]
[1738125267853,0.11172709,231.53,231.52,10.74306488]
[1738125268051,0.11172709,231.53,231.5,15.12556488]
[1738125268441,0.11172709,231.53,231.5,10.80606488]
[1738125268855,0.11172709,231.53,231.5,0.063]
[1738125269839,10.74306488,231.52,231.5,0.063]
[1738125270043,23.902374,231.51,231.5,0.063]
[1738125270245,24.901474,231.51,231.5,0.063]
[1738125270462,25.901474,231.51,231.5,0.063]
[1738125272164,45.901474,231.48,231.47,0.063]
[1738125272362,23.902374,231.47,231.46,0.063]
[1738125272548,0.12549,231.47,231.46,0.063]
[1738125274465,25.551774,231.47,231.46,0.063]
[1738125277868,25.63834077,231.47,231.46,0.063]
[1738125282053,27.07891801,231.47,231.46,0.063]
[1738125282253,27.07891801,231.47,231.46,0.0001]
[1738125283179,24.902374,231.46,231.45,0.0001]
[1738125283397,35.64543888,231.46,231.45,0.0001]
[1738125284882,41.77973888,231.46,231.45,0.0001]
[1738125289283,35.64543888,231.46,231.45,0.0001]
[1738125294200,34.64543888,231.46,231.45,0.0001]
[1738125295197,35.64543888,231.46,231.45,0.0001]
[1738125296675,0.12549,231.39,231.3,10.74306488]
[1738125296866,0.12549,231.39,231.28,12.38156488]
[1738125296867,34.64543888,231.39,231.28,12.38156488]
[1738125297392,35.64453888,231.39,231.28,12.38156488]
[1738125297897,35.72292233,231.39,231.28,12.38156488]
[1738125299099,35.72292233,231.39,231.3,10.74306488]
[1738125299477,34.72382233,231.39,231.3,10.74306488]
[1738125299888,11.94603833,231.39,231.32,10.74306488]
[1738125300611,10.94693833,231.39,231.32,10.74306488]
[1738125300980,0.07838345,231.39,231.36,16.90036488]
[1738125301189,0.07838345,231.39,231.38,10.80606488]
[1738125301511,0.07838345,231.39,231.38,15.12786488]
[1738125303182,0.07838345,231.39,231.38,18.02786488]
[1738125303590,0.09462882,231.4,231.38,18.02786488]
[1738125308496,0.0937436,231.41,231.38,18.02786488]
[1738125308497,0.0937436,231.41,231.4,4.3215]
[1738125308795,0.0937436,231.41,231.4,15.06456488]
[1738125308993,0.0937436,231.41,231.4,98.16456488]
[1738125309385,0.0937436,231.41,231.4,121.94144888]
[1738125312203,0.0937436,231.41,231.4,98.16456488]
[1738125313085,0.1237436,231.41,231.4,98.16456488]
[1738125313786,0.1237436,231.41,231.4,15.06456488]
[1738125314296,0.1237436,231.41,231.4,10.74306488]
[1738125314699,0.1237436,231.41,231.38,10.80606488]
[1738125315204,0.1237436,231.41,231.38,0.063]
[1738125315605,10.99229848,231.41,231.38,0.063]
[1738125315788,0.1237436,231.41,231.38,0.063]
[1738125317087,0.12549,231.4,231.38,0.063]
[1738125317791,0.08498216,231.39,231.38,0.063]
[1738125323243,0.08498216,231.39,231.38,10.80606488]
[1738125323540,0.08498216,231.39,231.38,0.063]
[1738125325536,10.95353704,231.39,231.38,0.063]
[1738125326402,34.73042104,231.39,231.38,0.063]
[1738125326809,35.17189828,231.39,231.38,0.063]
[1738125327140,36.74719828,231.39,231.38,0.063]
[1738125331043,36.30572104,231.39,231.38,0.063]
[1738125333749,37.30572104,231.39,231.38,0.063]